bitfinex/quotes_BTCUSD_20241226
["timestamp","ask_amount","ask_price","bid_price","bid_amount"]
[1735212051788,1.06992728,95955.0,95954.0,0.00015537]
[1735212051997,1.13262728,95955.0,95954.0,0.00015537]
[1735212052195,1.00284328,95955.0,95954.0,0.00015537]
[1735212053827,0.98787443,95955.0,95954.0,0.00015537]
[1735212054388,1.00284328,95955.0,95954.0,0.00015537]
[1735212056338,1.00084328,95955.0,95954.0,0.00015537]
[1735212057212,0.98587443,95955.0,95954.0,0.00015537]
[1735212057426,0.92317443,95955.0,95954.0,0.00015537]
[1735212060810,1.15998681,95955.0,95954.0,0.00015537]
[1735212060958,1.23765566,95955.0,95954.0,0.00015537]
[1735212061165,1.21673866,95955.0,95954.0,0.00015537]
[1735212061582,1.18825808,95955.0,95954.0,0.00015537]
[1735212062691,1.13811608,95955.0,95954.0,0.00015537]
[1735212063401,1.27801522,95955.0,95954.0,0.00015537]
[1735212063585,1.27810082,95955.0,95954.0,0.00015537]
[1735212064103,1.13820168,95955.0,95954.0,0.00015537]
[1735212066863,1.16668226,95955.0,95954.0,0.00015537]
[1735212067269,1.26039742,95955.0,95954.0,0.00015537]
[1735212067425,1.23191684,95955.0,95954.0,0.00015537]
[1735212068095,1.13820168,95955.0,95954.0,0.00015537]
[1735212068275,1.16668226,95955.0,95954.0,0.00015537]
[1735212068847,1.05674626,95955.0,95954.0,0.00015537]
[1735212069237,2.83477926,95955.0,95954.0,0.00015537]
[1735212069430,2.55458126,95955.0,95954.0,0.00015537]
[1735212069636,2.53248798,95955.0,95954.0,0.00015537]
[1735212069875,2.32717698,95955.0,95954.0,0.00015537]
[1735212070257,2.30926526,95955.0,95954.0,0.00015537]
[1735212070573,2.31726526,95955.0,95954.0,0.00015537]
[1735212070777,2.20889626,95955.0,95954.0,0.00015537]
[1735212071215,2.21689626,95955.0,95954.0,0.00015537]
[1735212071961,2.21489626,95955.0,95954.0,0.00015537]
[1735212072405,2.21089626,95955.0,95954.0,0.00015537]
[1735212072812,2.20689626,95955.0,95954.0,0.00015537]
[1735212073031,2.21889626,95955.0,95954.0,0.00015537]
[1735212073599,2.23789626,95955.0,95954.0,0.00015537]
[1735212073799,2.24189626,95955.0,95954.0,0.00015537]
[1735212074056,2.28416381,95955.0,95954.0,3.7e-07]
[1735212074216,1.12401381,95955.0,95954.0,3.7e-07]
[1735212074420,0.1,95935.0,95934.0,0.0001712]
[1735212074667,2.12529562,95935.0,95934.0,0.0001712]
[1735212075209,2.50488062,95935.0,95934.0,0.0001712]
[1735212075428,2.49472105,95935.0,95934.0,0.0001712]
[1735212075628,2.52205785,95935.0,95934.0,0.0001712]
[1735212076280,2.54605785,95935.0,95934.0,0.0001712]
[1735212076453,0.1,95900.0,95898.0,0.0001708]
[1735212076671,0.1122852,95899.0,95898.0,0.0001708]
[1735212077605,0.2622852,95899.0,95898.0,0.0001708]
[1735212077772,0.78152625,95899.0,95898.0,0.0001708]
[1735212078171,1.44520425,95899.0,95898.0,0.0001708]
[1735212078371,1.02178225,95899.0,95898.0,0.0001708]
[1735212078570,1.02178225,95899.0,95898.0,0.0031708]
[1735212079491,0.73152625,95899.0,95898.0,0.0031708]
[1735212079736,1.03477925,95899.0,95898.0,0.0001708]
[1735212079939,1.03477925,95899.0,95898.0,0.0021708]
[1735212080120,1.02677925,95899.0,95898.0,0.0021708]
[1735212080492,1.03477925,95899.0,95898.0,0.0021708]
[1735212080693,1.02677925,95899.0,95898.0,0.0021708]
[1735212080918,1.01478725,95899.0,95898.0,0.0021708]
[1735212081335,0.93224225,95899.0,95898.0,0.0001708]
[1735212081535,0.93324225,95899.0,95898.0,0.0001708]
[1735212081944,0.93224225,95899.0,95898.0,0.0001708]
[1735212082142,0.53553993,95899.0,95898.0,0.05790325]
[1735212082353,0.53653993,95899.0,95898.0,0.2213344]
[1735212082745,0.52853993,95899.0,95898.0,0.2213344]
[1735212082943,0.52753993,95899.0,95898.0,0.2213344]
[1735212083152,0.53553993,95899.0,95898.0,0.28518064]
[1735212083505,0.52753993,95899.0,95898.0,0.2213344]
[1735212083697,0.53453993,95899.0,95898.0,0.4298884]
[1735212084149,0.52753993,95899.0,95898.0,0.4298884]
[1735212084351,0.52753993,95899.0,95898.0,0.4328884]
[1735212084909,0.53053993,95899.0,95898.0,0.4298884]
[1735212085687,0.53053993,95899.0,95898.0,0.4348884]
[1735212085894,0.53053993,95899.0,95898.0,0.0051708]
[1735212086041,0.55902051,95899.0,95898.0,0.0051708]
[1735212086656,0.55602051,95899.0,95898.0,0.0051708]
[1735212087010,0.53553993,95899.0,95898.0,0.0051708]
[1735212087212,0.52753993,95899.0,95898.0,0.0051708]
[1735212087435,0.52753993,95899.0,95898.0,0.0001708]
[1735212087696,0.52753993,95899.0,95898.0,0.0011708]
[1735212088019,0.53553993,95899.0,95898.0,0.0011708]
[1735212088187,0.52753993,95899.0,95898.0,0.0001708]
[1735212088408,0.53553993,95899.0,95898.0,0.05890325]
[1735212089376,0.53553993,95899.0,95898.0,0.05790325]
[1735212090250,0.52753993,95899.0,95898.0,0.05790325]
[1735212090574,0.53553993,95899.0,95898.0,0.0001708]
[1735212090781,0.52753993,95899.0,95898.0,0.0001708]
[1735212090982,0.53553993,95899.0,95898.0,0.0001708]
[1735212091184,0.63952625,95899.0,95898.0,0.0001708]
[1735212091680,0.81800683,95899.0,95898.0,0.0011708]
[1735212091863,0.84534363,95899.0,95898.0,0.0011708]
[1735212092632,0.84534363,95899.0,95898.0,0.0001708]
[1735212092826,1.8552871,95899.0,95898.0,0.0001708]
[1735212093073,1.91110448,95899.0,95898.0,0.0001708]
[1735212093271,1.17029825,95899.0,95898.0,0.0001708]
[1735212093475,0.91832625,95899.0,95898.0,0.0001708]
[1735212093863,1.06917625,95899.0,95898.0,0.0001708]
[1735212094173,1.07717625,95899.0,95898.0,0.0001708]
[1735212094499,1.06917625,95899.0,95898.0,0.0001708]
[1735212094798,1.08017625,95899.0,95898.0,0.0001708]
[1735212095454,0.92132625,95899.0,95898.0,0.0001708]
[1735212095899,0.91832625,95899.0,95898.0,0.0001708]
[1735212097048,0.78152625,95899.0,95898.0,0.0001708]
[1735212097202,0.64252625,95899.0,95898.0,0.0001708]
[1735212097407,0.63452625,95899.0,95898.0,0.0001708]
[1735212097603,0.63152625,95899.0,95898.0,0.0001708]
[1735212097928,0.63952625,95899.0,95898.0,0.0001708]
[1735212098144,0.63352625,95899.0,95898.0,0.0001708]
[1735212098345,0.64152625,95899.0,95898.0,0.0001708]
[1735212098547,0.63952625,95899.0,95898.0,0.0001708]
[1735212099452,0.63961185,95899.0,95898.0,0.0001708]
[1735212099856,0.64761185,95899.0,95898.0,0.0001708]
[1735212100235,0.63161185,95899.0,95898.0,0.0001708]
[1735212100425,0.63961185,95899.0,95898.0,0.0001708]
[1735212100625,0.63261185,95899.0,95898.0,0.0001708]
[1735212101079,0.63961185,95899.0,95898.0,0.0001708]
[1735212101236,0.64061185,95899.0,95898.0,0.0001708]
[1735212103235,0.63261185,95899.0,95898.0,0.0001708]
[1735212103400,0.63961185,95899.0,95898.0,0.0001708]
[1735212103580,0.64061185,95899.0,95898.0,0.0001708]
[1735212105968,0.79061185,95899.0,95898.0,0.0001708]
[1735212106765,0.78261185,95899.0,95898.0,0.0001708]
[1735212106969,0.78161185,95899.0,95898.0,0.0001708]
[1735212107142,0.79061185,95899.0,95898.0,0.0001708]
[1735212108730,0.53662553,95899.0,95898.0,0.1429344]
[1735212109585,0.53562553,95899.0,95898.0,0.1429344]
[1735212109785,0.52762553,95899.0,95898.0,0.1429344]
[1735212110118,0.53562553,95899.0,95898.0,0.1429344]
[1735212110324,0.52762553,95899.0,95898.0,0.1429344]
[1735212110749,0.53562553,95899.0,95898.0,0.1439344]
[1735212111073,0.53562553,95899.0,95898.0,0.18956255]
[1735212112337,0.53562553,95899.0,95898.0,0.1439344]
[1735212112957,0.53562553,95899.0,95898.0,0.2251344]
[1735212113226,0.52732665,95899.0,95898.0,0.2241344]
[1735212113434,0.51932665,95899.0,95898.0,0.2281344]
[1735212113589,0.53015585,95899.0,95898.0,0.2281344]
[1735212113926,0.52615585,95899.0,95898.0,0.2241344]
[1735212114295,0.52915585,95899.0,95898.0,0.2281344]
[1735212114884,0.52615585,95899.0,95898.0,0.2241344]
[1735212115289,0.52815585,95899.0,95898.0,0.2241344]
[1735212115492,0.52815585,95899.0,95898.0,0.36925994]
[1735212115802,0.52132665,95899.0,95898.0,0.36925994]
[1735212116003,0.52132665,95899.0,95898.0,0.57324626]
[1735212116234,0.14053527,95943.0,95923.0,0.3742636]
[1735212116235,0.09367465,95941.0,95923.0,0.3742636]
[1735212116571,0.09367465,95941.0,95923.0,0.57824992]
[1735212117127,0.0772,95934.0,95923.0,0.05773245]
[1735212117332,0.33419644,95933.0,95917.0,0.08503115]
[1735212117542,0.0090856,95924.0,95923.0,0.08503115]
[1735212117887,0.0010856,95924.0,95923.0,0.1477636]
[1735212118099,0.0020856,95924.0,95923.0,0.1477636]
[1735212118299,0.0010856,95924.0,95923.0,0.1477636]
[1735212118510,0.0010856,95924.0,95923.0,0.16253996]
[1735212118724,0.0100856,95924.0,95923.0,0.16253996]
[1735212119066,0.0010856,95924.0,95923.0,0.1477636]
[1735212119267,8.56e-05,95924.0,95923.0,0.1427636]
[1735212119469,8.56e-05,95924.0,95923.0,0.1437636]
[1735212120163,8.56e-05,95924.0,95923.0,0.1427636]
[1735212120363,0.0080856,95924.0,95923.0,0.1447636]
[1735212120715,8.56e-05,95924.0,95923.0,0.08603115]
[1735212120919,0.11207192,95924.0,95923.0,0.002]
[1735212121356,0.10983079,95924.0,95919.0,0.08503115]
[1735212121540,0.11783079,95924.0,95923.0,0.001]
[1735212121993,0.10983079,95924.0,95919.0,0.08503115]
[1735212122344,0.11783079,95924.0,95923.0,0.001]
[1735212122773,0.11783079,95924.0,95923.0,0.003]
[1735212123110,0.11783079,95924.0,95923.0,0.001]
[1735212123514,0.11207192,95924.0,95923.0,0.05873245]
[1735212123912,0.10988356,95924.0,95923.0,0.05773245]
[1735212124139,0.11788356,95924.0,95923.0,0.05773245]
[1735212124352,0.11788356,95924.0,95923.0,0.05873245]
[1735212124525,0.10988356,95924.0,95923.0,0.05873245]
[1735212124738,0.11788356,95924.0,95923.0,0.05873245]
[1735212125376,0.02189724,95924.0,95923.0,0.1437636]
[1735212125837,8.56e-05,95924.0,95923.0,0.1437636]
[1735212126245,8.56e-05,95924.0,95923.0,0.1427636]
[1735212126678,8.56e-05,95924.0,95923.0,0.1447636]
[1735212126827,0.0080856,95924.0,95923.0,0.1447636]
[1735212127231,8.56e-05,95924.0,95923.0,0.1447636]
[1735212127504,0.0080856,95924.0,95923.0,0.1427636]
[1735212127935,0.0080856,95924.0,95923.0,0.1467636]
[1735212128133,0.0110856,95924.0,95923.0,0.1467636]
[1735212129416,0.0110856,95924.0,95923.0,0.1427636]
[1735212129855,0.0110856,95924.0,95923.0,0.1457636]
[1735212130266,0.0110856,95924.0,95923.0,0.1427636]
[1735212130491,0.0110856,95924.0,95923.0,0.1467636]
[1735212131098,0.0110856,95924.0,95923.0,0.08903115]
[1735212132732,0.0110856,95924.0,95923.0,0.1467636]
[1735212133449,0.0110856,95924.0,95923.0,0.08903115]
[1735212133766,0.0110856,95924.0,95923.0,0.1467636]
[1735212134625,0.0110856,95924.0,95923.0,0.08903115]
[1735212135614,0.0110856,95924.0,95923.0,0.1467636]
[1735212138018,0.0110856,95924.0,95923.0,0.147806]
[1735212143067,0.0905856,95924.0,95923.0,0.1467636]
[1735212145468,0.0905856,95924.0,95923.0,0.08903115]
[1735212145628,0.1391856,95924.0,95923.0,0.08903115]
[1735212146084,0.14500436,95924.0,95923.0,0.08903115]
[1735212146464,0.1595048,95924.0,95923.0,0.004]
[1735212146815,0.14500436,95924.0,95923.0,0.004]
[1735212147512,0.24899068,95924.0,95923.0,0.004]
[1735212147871,0.23799068,95924.0,95923.0,0.004]
[1735212148274,0.0795,95923.0,95920.0,0.08503115]
[1735212148469,0.0795,95923.0,95922.0,0.05773245]
[1735212149951,0.0875,95923.0,95922.0,0.05773245]
[1735212150161,0.0875,95923.0,95922.0,0.05873245]
[1735212150363,0.0875,95923.0,95922.0,0.001]
[1735212150715,0.0875,95923.0,95922.0,0.05873245]
[1735212151119,0.0875,95923.0,95922.0,0.001]
[1735212151532,0.0795,95923.0,95922.0,0.001]
[1735212151731,0.0795,95923.0,95922.0,0.05873245]
[1735212152048,0.0875,95923.0,95922.0,0.05773245]
[1735212152279,0.0795,95923.0,95922.0,0.05873245]
[1735212152516,0.0875,95923.0,95922.0,0.05873245]
[1735212152763,0.0875,95923.0,95922.0,0.05773245]
[1735212153010,0.0875,95923.0,95922.0,0.05873245]
[1735212155699,0.0875,95923.0,95922.0,0.001]
[1735212156763,0.296,95923.0,95922.0,0.001]
[1735212157122,0.0875,95923.0,95922.0,0.001]
[1735212157880,0.0795,95923.0,95922.0,0.001]
[1735212158032,0.0795,95923.0,95922.0,0.05773245]
[1735212158235,0.0875,95923.0,95922.0,0.05773245]
[1735212158441,0.0875,95923.0,95922.0,0.001]
[1735212158442,0.0875856,95923.0,95922.0,0.001]
[1735212158620,0.0875856,95923.0,95922.0,0.05873245]
[1735212158819,0.0795856,95923.0,95922.0,0.05773245]
[1735212159264,0.0875856,95923.0,95922.0,0.05873245]
[1735212159520,0.0795856,95923.0,95922.0,0.05873245]
[1735212159849,0.0875856,95923.0,95922.0,0.05773245]
[1735212161178,0.0875856,95923.0,95922.0,0.05873245]
[1735212161359,0.0795856,95923.0,95922.0,0.05873245]
[1735212161561,0.0875856,95923.0,95922.0,0.05873245]
[1735212161755,0.0375856,95923.0,95922.0,0.05873245]
[1735212162184,0.0455856,95923.0,95922.0,0.05873245]
[1735212162360,0.0375856,95923.0,95922.0,0.05773245]
[1735212162561,0.0375856,95923.0,95922.0,0.05873245]
[1735212162755,0.0455856,95923.0,95922.0,0.05873245]
[1735212163081,0.04338163,95923.0,95922.0,0.05773245]
[1735212163239,0.05138163,95923.0,95922.0,0.05773245]
[1735212163644,0.05138163,95923.0,95922.0,0.15703996]
[1735212163861,0.02188163,95923.0,95922.0,0.1427636]
[1735212164060,0.0160856,95923.0,95922.0,0.1427636]
[1735212164499,8.56e-05,95923.0,95922.0,0.1437636]
[1735212164698,8.56e-05,95923.0,95922.0,0.22069306]
[1735212164880,0.0080856,95923.0,95922.0,0.21969306]
[1735212165140,0.0080856,95923.0,95922.0,0.1427636]
[1735212165366,0.0080856,95923.0,95922.0,0.14580599]
[1735212165367,0.0160856,95923.0,95922.0,0.14580599]
[1735212165550,0.0160856,95923.0,95922.0,0.62279231]
[1735212165713,8.56e-05,95923.0,95922.0,0.66984992]
[1735212165916,0.0030856,95923.0,95922.0,0.77383624]
[1735212166136,0.0030856,95923.0,95922.0,0.77783624]
[1735212166602,0.0070856,95923.0,95922.0,0.77783624]
[1735212167406,0.0070856,95923.0,95922.0,0.77383624]
[1735212167860,8.56e-05,95923.0,95922.0,0.77883624]
[1735212168346,8.56e-05,95923.0,95922.0,0.66984992]
[1735212168552,0.0010856,95923.0,95922.0,0.66984992]
[1735212168932,8.56e-05,95923.0,95922.0,0.66984992]
[1735212169154,8.56e-05,95923.0,95922.0,0.69523552]
[1735212169943,8.56e-05,95923.0,95922.0,0.69540672]
[1735212170147,8.56e-05,95923.0,95922.0,0.79939304]
[1735212170347,8.56e-05,95923.0,95922.0,0.8101058]
[1735212170549,8.56e-05,95923.0,95922.0,0.8051058]
[1735212170783,8.56e-05,95923.0,95922.0,0.70611948]
[1735212170920,8.56e-05,95923.0,95922.0,1.0503709]
[1735212171347,8.56e-05,95923.0,95922.0,1.0433709]
[1735212171566,0.0020856,95923.0,95922.0,1.0553709]
[1735212171770,0.0020856,95923.0,95922.0,1.0513709]
[1735212171975,0.0020856,95923.0,95922.0,1.15535722]
[1735212172175,0.0020856,95923.0,95922.0,1.15135722]
[1735212172379,0.0010856,95923.0,95922.0,1.14735722]
[1735212172583,0.0020856,95923.0,95922.0,1.15535722]
[1735212172777,0.0030856,95923.0,95922.0,1.15935722]
[1735212173042,0.1499,95959.0,95954.0,0.1427636]
[1735212173572,0.00604638,95955.0,95954.0,0.1427636]
[1735212173772,8.56e-05,95955.0,95954.0,0.1427636]
[1735212174273,0.00024106,95955.0,95954.0,0.1427636]
[1735212174872,0.00024106,95955.0,95954.0,0.17888396]
[1735212175257,0.00824106,95955.0,95954.0,0.17788396]
[1735212175819,0.00824106,95955.0,95954.0,0.17988396]
[1735212175973,0.00024106,95955.0,95954.0,0.1447636]
[1735212176871,0.00724106,95955.0,95954.0,0.1427636]
[1735212177290,0.00724106,95955.0,95954.0,0.1447636]
[1735212177704,0.01320184,95955.0,95954.0,0.1447636]
[1735212178875,0.01320184,95955.0,95954.0,0.20392756]
[1735212179290,0.01320184,95955.0,95954.0,0.1447636]
[1735212184249,0.01320184,95955.0,95954.0,0.08703115]
[1735212184632,0.01316184,95955.0,95954.0,0.1447636]
[1735212184825,0.01316184,95955.0,95954.0,0.08703115]
[1735212185197,0.01316184,95955.0,95954.0,0.1447636]
[1735212192234,0.01316184,95955.0,95954.0,0.08703115]
[1735212192637,0.01316184,95955.0,95954.0,0.1447636]
[1735212193067,0.09216184,95955.0,95954.0,0.1447636]
[1735212193899,0.24184816,95955.0,95954.0,0.002]
[1735212195078,0.23484816,95955.0,95954.0,0.002]
[1735212195347,0.24284816,95955.0,95954.0,0.003]
[1735212195684,0.24284816,95955.0,95954.0,0.001]
[1735212196087,0.24284816,95955.0,95954.0,0.002]
[1735212196523,0.24284816,95955.0,95954.0,0.001]
[1735212196897,0.24284816,95955.0,95954.0,0.002]
[1735212201654,0.23484816,95955.0,95954.0,0.001]
[1735212201836,0.22080846,95955.0,95954.0,0.001]
[1735212202038,0.22880846,95955.0,95954.0,0.001]
[1735212202483,0.12482214,95955.0,95953.0,0.05773245]
[1735212202679,0.11682214,95955.0,95954.0,0.002]
[1735212203216,0.12482214,95955.0,95954.0,0.002]
[1735212203350,0.12482214,95955.0,95953.0,0.05773245]
[1735212203576,0.13282214,95955.0,95950.0,0.03]
[1735212203775,0.13282214,95955.0,95953.0,0.002]
[1735212204169,0.13282214,95955.0,95953.0,0.05773245]
[1735212204600,0.13282214,95955.0,95950.0,0.03]
[1735212204803,0.11682214,95955.0,95950.0,0.03]
[1735212205208,0.12482214,95955.0,95950.0,0.03]
[1735212205420,0.12482214,95955.0,95954.0,0.000171]
[1735212205632,0.13282214,95955.0,95954.0,0.000171]
[1735212205828,0.23689396,95955.0,95954.0,0.000171]
[1735212206027,0.22889396,95955.0,95954.0,0.000171]
[1735212206231,0.23689396,95955.0,95954.0,0.000171]
[1735212206452,0.22889396,95955.0,95954.0,0.000171]
[1735212206997,0.23689396,95955.0,95954.0,0.002171]
[1735212207388,0.23689396,95955.0,95954.0,0.000171]
[1735212207604,0.23689396,95955.0,95954.0,0.001171]
[1735212208958,0.23689396,95955.0,95954.0,0.000171]
[1735212209398,0.23689396,95955.0,95954.0,0.002171]
[1735212213339,0.92431083,95955.0,95954.0,0.002171]
[1735212219749,0.90797396,95955.0,95954.0,0.002171]
[1735212219958,0.01496885,95951.0,95950.0,0.05]
[1735212220176,0.01496885,95951.0,95927.0,0.05773245]
[1735212220177,0.2274,95925.0,95922.0,0.0001712]
[1735212220623,0.23228234,95925.0,95922.0,0.0001712]
[1735212221438,0.23228234,95925.0,95924.0,0.00032666]
[1735212221839,0.38228234,95925.0,95924.0,0.00032666]
[1735212222276,1.00734866,95925.0,95924.0,0.00032666]
[1735212222403,1.11133498,95925.0,95924.0,0.00032666]
[1735212222826,1.41439651,95925.0,95924.0,0.00032666]
[1735212223477,1.25440766,95925.0,95924.0,0.00032666]
[1735212223710,0.67356234,95925.0,95924.0,0.00032666]
[1735212224232,0.67068,95925.0,95924.0,0.00032666]
[1735212224442,0.76235465,95925.0,95924.0,0.00032666]
[1735212224819,0.76235465,95925.0,95924.0,0.00232666]
[1735212225021,0.86634097,95925.0,95924.0,0.00232666]
[1735212225223,0.94614097,95925.0,95924.0,0.00232666]
[1735212225591,0.85246632,95925.0,95924.0,0.00232666]
[1735212226209,0.85246632,95925.0,95924.0,0.00032666]
[1735212227076,0.208498,95924.0,95922.0,0.0001712]
[1735212227307,0.38648632,95923.0,95922.0,0.0001712]
[1735212227493,1.01155264,95923.0,95922.0,0.0001712]
[1735212227822,1.79920564,95923.0,95922.0,0.0001712]
[1735212228422,1.69521932,95923.0,95922.0,0.0001712]
[1735212229714,1.22862532,95923.0,95922.0,0.0001712]
[1735212229921,1.13464732,95923.0,95922.0,0.0001712]
[1735212230070,0.90956632,95923.0,95922.0,0.0001712]
[1735212230690,0.90756632,95923.0,95922.0,0.0001712]
[1735212230881,0.90956632,95923.0,95922.0,0.0001712]
[1735212231129,1.01355264,95923.0,95922.0,0.0001712]
[1735212231729,0.90956632,95923.0,95922.0,0.0001712]
[1735212232973,0.90756632,95923.0,95922.0,0.0001712]
[1735212233468,0.90956632,95923.0,95922.0,0.0001712]
[1735212233832,0.90756632,95923.0,95922.0,0.0001712]
[1735212234364,0.90856632,95923.0,95922.0,0.0001712]
[1735212234578,0.72148,95923.0,95922.0,0.0001712]
[1735212234742,0.52208,95923.0,95922.0,0.0001712]
[1735212235620,0.52108,95923.0,95922.0,0.0001712]
[1735212235795,0.52108,95923.0,95922.0,0.0011712]
[1735212236039,0.64878,95923.0,95922.0,0.0011712]
[1735212236238,0.56888,95923.0,95922.0,0.0011712]
[1735212236459,0.56888,95923.0,95922.0,0.0001712]
[1735212236660,0.67286632,95923.0,95922.0,0.0011712]
[1735212237010,0.56888,95923.0,95922.0,0.0011712]
[1735212237214,0.52108,95923.0,95922.0,0.0011712]
[1735212237436,0.52108,95923.0,95922.0,0.0001712]
[1735212240098,0.52108,95923.0,95922.0,0.0021712]
[1735212240535,0.72905264,95923.0,95922.0,0.0001712]
[1735212240764,0.87905264,95923.0,95922.0,0.0001712]
[1735212240983,1.00675264,95923.0,95922.0,0.0001712]
[1735212241196,1.27913304,95923.0,95922.0,0.0001712]
[1735212241402,1.29410189,95923.0,95922.0,0.0001712]
[1735212241612,1.07914889,95923.0,95922.0,0.0001712]
[1735212241815,2.02960589,95923.0,95922.0,0.0001712]
[1735212242051,0.43345,95900.0,95899.0,0.0001712]
[1735212242253,0.53743632,95900.0,95899.0,0.00032667]
[1735212242762,0.68743632,95900.0,95899.0,0.00032667]
[1735212243397,1.20851632,95900.0,95899.0,0.00032667]
[1735212243611,1.31250264,95900.0,95899.0,0.00032667]
[1735212243764,1.31250264,95900.0,95899.0,0.00232667]
[1735212243949,1.20851632,95900.0,95899.0,0.00232667]
[1735212245531,1.20851632,95900.0,95899.0,0.00032667]
[1735212245948,1.20951632,95900.0,95899.0,0.00032667]
[1735212249309,1.20851632,95900.0,95899.0,0.00032667]
[1735212249653,1.20951632,95900.0,95899.0,0.00032667]
[1735212250057,1.31350264,95900.0,95899.0,0.00032667]
[1735212250885,1.31550264,95900.0,95899.0,0.00032667]
[1735212253107,1.21151632,95900.0,95899.0,0.00032667]
[1735212253313,1.21051632,95900.0,95899.0,0.00032667]
[1735212253515,0.92596632,95900.0,95899.0,0.00032667]
[1735212253859,0.92796632,95900.0,95899.0,0.00032667]
[1735212254043,1.13451632,95900.0,95899.0,0.00032667]
[1735212254420,1.13651632,95900.0,95899.0,0.00032667]
[1735212254843,1.13551632,95900.0,95899.0,0.00032667]
[1735212255270,1.13651632,95900.0,95899.0,0.00032667]
[1735212255622,1.13551632,95900.0,95899.0,0.00032667]
[1735212257802,1.23950264,95900.0,95899.0,0.00032667]
[1735212259453,1.24050264,95900.0,95899.0,0.00032667]
[1735212259715,1.23850264,95900.0,95899.0,0.00032667]
[1735212259846,1.24350264,95900.0,95899.0,0.00032667]
[1735212260462,1.24550264,95900.0,95899.0,0.00032667]
[1735212262815,1.14151632,95900.0,95899.0,0.00032667]
[1735212263350,0.99151632,95900.0,95899.0,0.00032667]
[1735212264065,1.14151632,95900.0,95899.0,0.00032667]
[1735212265041,1.14051632,95900.0,95899.0,0.00032667]
[1735212265465,1.14151632,95900.0,95899.0,0.00032667]
[1735212265739,1.24550264,95900.0,95899.0,0.00032667]
[1735212266347,1.23850264,95900.0,95899.0,0.00032667]
[1735212266555,0.52208,95900.0,95899.0,0.08535782]
[1735212266793,0.52308,95900.0,95899.0,0.10835782]
[1735212267027,0.52108,95900.0,95899.0,0.10835782]
[1735212267282,0.52408,95900.0,95899.0,0.10835782]
[1735212267779,0.52108,95900.0,95899.0,0.10835782]
[1735212268004,0.52208,95900.0,95899.0,0.11035782]
[1735212273679,0.62208,95900.0,95899.0,0.02532667]
[1735212274180,1.00406632,95900.0,95899.0,0.00232667]
[1735212274664,1.00306632,95900.0,95899.0,0.00032667]
[1735212274915,1.37997232,95900.0,95899.0,0.00132667]
[1735212275160,1.30084432,95900.0,95899.0,0.00132667]
[1735212275654,1.40483064,95900.0,95899.0,0.00132667]
[1735212275915,0.1,95878.0,95877.0,0.0001708]
[1735212276157,0.69058432,95878.0,95877.0,0.00024625]
[1735212276640,1.21166432,95878.0,95877.0,0.00024625]
[1735212277085,1.31565064,95878.0,95877.0,0.00024625]
[1735212277896,1.21166432,95878.0,95877.0,0.00024625]
[1735212280021,1.21266432,95878.0,95877.0,0.00024625]
[1735212280654,1.21366432,95878.0,95877.0,0.00024625]
[1735212297051,1.39111232,95878.0,95877.0,0.00024625]
[1735212298629,1.43729138,95878.0,95877.0,0.00024625]
[1735212298842,1.61146115,95878.0,95877.0,0.00024625]
[1735212298987,1.62643,95878.0,95877.0,0.00024625]
[1735212300914,1.58416245,95878.0,95877.0,0.00024625]
[1735212301116,1.62643,95878.0,95877.0,0.00024625]
[1735212302146,1.53218811,95878.0,95877.0,0.00024625]
[1735212302550,1.41819979,95878.0,95877.0,0.00024625]
[1735212303161,1.38424679,95878.0,95877.0,0.00024625]
[1735212303581,0.94251724,95878.0,95877.0,0.00024625]
[1735212303726,0.92616632,95878.0,95877.0,0.00024625]
[1735212304338,0.77616632,95878.0,95877.0,0.00024625]
[1735212304546,0.72606632,95878.0,95877.0,0.00024625]
[1735212304966,0.62208,95878.0,95877.0,0.0852774]
[1735212305174,0.62108,95878.0,95877.0,0.0852774]
[1735212305555,0.52108,95878.0,95877.0,0.24890985]
[1735212305760,0.52108,95878.0,95877.0,0.1911774]
[1735212306163,0.52108,95878.0,95877.0,0.24890985]
[1735212306374,0.52108,95878.0,95877.0,0.24990985]
[1735212307441,0.52108,95878.0,95877.0,0.1921774]
[1735212307649,0.673188,95878.0,95877.0,0.1092774]
[1735212307861,0.62108,95878.0,95877.0,0.02424625]
[1735212308067,0.62108,95878.0,95877.0,0.1092774]
[1735212308271,0.62108,95878.0,95877.0,0.02324625]
[1735212308475,0.62108,95878.0,95877.0,0.00024625]
[1735212308730,0.62108,95878.0,95877.0,0.00124625]
[1735212309136,0.62108,95878.0,95877.0,0.00024625]
[1735212309311,0.80903292,95878.0,95877.0,0.00224625]
[1735212309541,0.80803292,95878.0,95877.0,0.00124625]
[1735212309787,0.80803292,95878.0,95877.0,0.00324625]
[1735212310001,0.80803292,95878.0,95877.0,0.00224625]
[1735212310140,0.80803292,95878.0,95877.0,0.00124625]
[1735212311170,0.95803292,95878.0,95877.0,0.00124625]
[1735212311450,1.26621092,95878.0,95877.0,0.00124625]
[1735212311688,1.24731092,95878.0,95877.0,0.00124625]
[1735212312065,1.24731092,95878.0,95877.0,0.00024625]
[1735212315104,1.26227977,95878.0,95877.0,0.00024625]
[1735212315350,1.26527977,95878.0,95877.0,0.00024625]
[1735212315561,1.29241158,95878.0,95877.0,0.00024625]
[1735212315817,1.28341158,95878.0,95877.0,0.00024625]
[1735212316172,1.28641158,95878.0,95877.0,0.00024625]
[1735212316467,1.29341158,95878.0,95877.0,0.00024625]
[1735212317487,1.33567913,95878.0,95877.0,0.00024625]
[1735212318135,1.33267913,95878.0,95877.0,0.00024625]
[1735212318337,1.17400113,95878.0,95877.0,0.00024625]
[1735212318580,4.58458328,95878.0,95877.0,0.00024625]
[1735212318798,4.15753528,95878.0,95877.0,0.00024625]
[1735212319205,4.17950413,95878.0,95877.0,0.00024625]
[1735212319406,4.16453528,95878.0,95877.0,0.00024625]
[1735212319724,4.13602928,95878.0,95877.0,0.00024625]
[1735212320613,3.86637313,95878.0,95877.0,0.00024625]
[1735212320842,3.83444113,95878.0,95877.0,0.00024625]
[1735212324290,3.84940998,95878.0,95877.0,0.00024625]
[1735212324489,3.87923812,95878.0,95877.0,0.00024625]
[1735212325710,2.33629348,95878.0,95877.0,0.00024625]
[1735212325909,2.4402798,95878.0,95877.0,0.00024625]
[1735212326389,2.4069578,95878.0,95877.0,0.00024625]
[1735212326814,2.4696578,95878.0,95877.0,0.00024625]
[1735212327214,2.51192535,95878.0,95877.0,0.00024625]
[1735212328560,2.28439703,95878.0,95877.0,0.00024625]
[1735212328988,2.00170367,95878.0,95877.0,0.00024625]
[1735212329330,1.64850267,95878.0,95877.0,0.00024625]
[1735212333173,1.88313413,95878.0,95877.0,0.00024625]
[1735212333810,1.57785599,95878.0,95877.0,0.00024625]
[1735212333995,1.68184231,95878.0,95877.0,0.00024625]
[1735212335333,1.49235231,95878.0,95877.0,0.00024625]
[1735212335535,1.76621331,95878.0,95877.0,0.00024625]
[1735212335762,1.74786531,95878.0,95877.0,0.00024625]
[1735212336190,1.68183731,95878.0,95877.0,0.00024625]
[1735212336766,1.79076731,95878.0,95877.0,0.00024625]